bitfinex-derivatives/quotes_ETHF0:USTF0_20250430
["timestamp","ask_amount","ask_price","bid_price","bid_amount"]
[1746027865241,1.13027,1769.4,1769.2,7.0358]
[1746027865435,2.88923,1769.3,1769.2,3.828]
[1746027867240,0.25894911,2558.9,1769.2,3.828]
[1746027867241,3.2078,1769.7,1769.2,8.828]
[1746027867440,5.08418,1769.6,1769.2,8.16618]
[1746027867640,6.71508,1769.6,1769.2,8.16618]
[1746027867842,1.13438347,1769.5,1769.2,7.0358]
[1746027868040,0.00416347,1769.5,1769.2,8.16618]
[1746027868448,0.00416347,1769.5,1769.4,4.33807]
[1746027868645,0.00416347,1769.5,1769.4,9.33807]
[1746027869044,1.13436347,1769.5,1769.4,8.2078]
[1746027869241,1.13436347,1769.5,1769.4,7.0358]
[1746027869440,1.13436347,1769.5,1769.4,3.828]
[1746027870144,0.00416347,1769.5,1769.4,14.77137]
[1746027870540,1.13436347,1769.5,1769.4,14.77137]
[1746027871448,1.13436347,1769.5,1769.4,8.6411]
[1746027871847,0.00416347,1769.5,1769.4,9.77137]
[1746027872049,0.00416347,1769.5,1769.4,55.57137]
[1746027872250,0.00416347,1769.5,1769.4,55.57037]
[1746027873140,1.12997,1769.9,1769.8,1.13001]
[1746027873141,3.948,1769.9,1769.8,1.13001]
[1746027873439,3.948,1769.9,1769.8,4.33781]
[1746027874043,69.766,1770.0,1769.9,1.12995]
[1746027874247,74.84388,1770.0,1769.9,2.79805]
[1746027874449,5.07777,1770.2,1770.1,1.1298]
[1746027874641,1.12984,1770.1,1770.0,1.12986]
[1746027874850,1.6789,1770.1,1770.0,2.79796]
[1746027875151,1.6789,1770.1,1770.0,6.62596]
[1746027875341,3.2078,1770.4,1770.1,1.12982]
[1746027875541,3.948,1770.5,1770.4,1.12957]
[1746027876146,3.948,1770.5,1770.4,6.59457]
[1746027876348,1.6789,1770.7,1770.4,5.465]
[1746027876649,5.07756,1770.6,1770.5,1.12956]
[1746027877344,3.948,1770.6,1770.5,4.95756]
[1746027877544,3.948,1770.6,1770.5,6.59456]
[1746027877940,6.7142,1770.6,1770.5,4.95756]
[1746027878252,3.948,1770.6,1770.5,4.95756]
[1746027879054,5.6602,1770.6,1770.5,4.95756]
[1746027879254,6.7897,1770.6,1770.5,3.828]
[1746027879459,8.868,1770.6,1770.5,3.828]
[1746027879955,3.2078,1770.8,1770.7,1.12941]
[1746027880146,7.1548,1770.8,1770.7,4.95741]
[1746027880347,8.867,1770.8,1770.7,4.95741]
[1746027880848,8.867,1770.8,1770.7,3.828]
[1746027881053,9.99637,1770.8,1770.7,3.828]
[1746027881240,8.867,1770.8,1770.7,4.95744]
[1746027881848,8.867,1770.8,1770.7,3.828]
[1746027882147,8.867,1770.8,1770.7,4.95744]
[1746027882756,9.99637,1770.8,1770.7,3.828]
[1746027883347,8.867,1770.8,1770.7,3.828]
[1746027883548,9.99637,1770.8,1770.7,3.828]
[1746027883843,8.867,1770.8,1770.7,4.95744]
[1746027884050,8.867,1770.8,1770.7,3.828]
[1746027884247,9.99637,1770.8,1770.7,3.828]
[1746027884848,8.867,1770.8,1770.7,4.95744]
[1746027885351,8.866,1770.8,1770.7,4.95744]
[1746027885859,9.99537,1770.8,1770.7,4.95744]
[1746027886058,8.866,1770.8,1770.7,4.95744]
[1746027887142,69.762,1770.9,1770.8,1.12937]
[1746027887347,73.708,1770.9,1770.8,2.75307]
[1746027887754,73.708,1770.9,1770.8,43.55307]
[1746027888257,74.83731,1770.9,1770.8,6.58107]
[1746027888451,73.708,1770.9,1770.8,6.58107]
[1746027889147,74.83731,1770.9,1770.8,2.75307]
[1746027889350,69.762,1770.9,1770.8,2.75307]
[1746027889558,73.708,1770.9,1770.8,2.75307]
[1746027890258,5.07528,1771.0,1770.9,1.12931]
[1746027890455,5.07528,1771.0,1770.9,2.88821]
[1746027891256,1.12928,1771.0,1770.9,2.88821]
[1746027891556,5.07528,1771.0,1770.9,2.88821]
[1746027891856,1.12928,1771.0,1770.9,2.88821]
[1746027892057,5.07528,1771.0,1770.9,2.88821]
[1746027892550,3.946,1771.0,1770.9,2.88821]
[1746027892951,6.67324,1771.0,1770.9,1.7589]
[1746027893445,6.67324,1771.0,1770.9,2.88821]
[1746027893651,6.67324,1771.0,1770.9,1.12931]
[1746027894460,5.544,1771.0,1770.9,1.12931]
[1746027895962,6.67324,1771.0,1770.9,1.12931]
[1746027896463,1.12931,1770.9,1770.8,1.12932]
[1746027896761,1.12932,1770.9,1770.8,1.12931]
[1746027896949,5.07529,1771.0,1770.9,1.12931]
[1746027897150,9.97707,1771.0,1770.5,0.8326]
[1746027897353,2.82334,1770.9,1770.5,1.96215]
[1746027897549,10.84927,1771.0,1770.5,0.8326]
[1746027897749,5.94757,1771.0,1770.9,1.12931]
[1746027897955,5.07526,1771.0,1770.8,1.12931]
[1746027898150,4.33701,1771.1,1770.9,1.12931]
[1746027898365,3.946,1771.0,1770.9,1.12931]
[1746027898957,5.07524,1771.0,1770.9,1.12931]
[1746027899155,3.946,1771.0,1770.9,1.12931]
[1746027899362,5.07524,1771.0,1770.9,1.12931]
[1746027899860,3.946,1771.0,1770.9,1.12931]
[1746027900453,3.946,1771.0,1770.9,2.74701]
[1746027900661,1.12918,1771.1,1770.9,2.74701]
[1746027900662,1.12918,1771.1,1770.9,1.6177]
[1746027900960,3.943,1771.0,1770.9,2.74697]
[1746027901762,1.12931,1770.9,1770.8,0.8068]
[1746027902058,1.1294,1770.8,1770.7,1.12944]
[1746027902260,1.12944,1770.7,1770.6,1.1295]
[1746027902460,3.943,1770.7,1770.6,1.1295]
[1746027902955,5.07244,1770.7,1770.6,1.1295]
[1746027903155,3.943,1770.7,1770.6,1.1295]
[1746027903658,1.12938,1770.8,1770.6,1.1295]
[1746027903659,1.12928,1771.0,1770.6,2.7418]
[1746027903862,3.943,1770.9,1770.8,1.12937]
[1746027904866,5.07231,1770.9,1770.8,1.12937]
[1746027905065,1.12937,1770.8,1770.7,0.8343]
[1746027905263,1.1295,1770.6,1770.5,5.16993]
[1746027905668,5.0725,1770.6,1770.5,5.16993]
[1746027905859,2.82394,1770.5,1770.2,3.2078]
[1746027906065,1.12969,1770.3,1770.2,1.12975]
[1746027906363,5.07269,1770.3,1770.2,1.12975]
[1746027906564,3.943,1770.3,1770.2,1.12975]
[1746027908266,6.03094,1771.0,1770.3,2.82408]
[1746027908465,4.3372,1770.8,1770.7,1.1294]
[1746027908967,7.1508,1770.8,1770.5,0.82]
[1746027909167,1.1295,1770.7,1770.6,1.12947]
[1746027909671,5.07242,1770.8,1770.7,1.12944]
[1746027910754,1.12945,1770.7,1770.6,1.12945]
[1746027910963,1.6739,1770.7,1770.6,1.12945]
[1746027911763,2.80335,1770.7,1770.5,0.82]
[1746027911967,2.80338,1770.7,1770.5,0.82]
[1746027912168,2.80338,1770.7,1770.5,1.12951]
[1746027912471,1.12959,1770.5,1770.3,4.33744]
[1746027912767,5.6933,1770.4,1770.3,4.33746]
[1746027912964,5.6933,1770.4,1770.1,1.12979]
[1746027913164,1.12982,1770.1,1770.0,3.2078]
[1746027913359,3.943,1770.1,1770.0,1.12985]
[1746027913559,3.943,1770.1,1769.8,4.0161]
[1746027913758,1.7503,1770.0,1769.9,1.12995]
[1746027914454,1.7503,1770.0,1769.8,4.0161]
[1746027914455,2.8802,1770.0,1769.8,5.14606]
[1746027914655,2.8802,1770.0,1769.5,3.63258]
[1746027914656,10.41406049,1770.0,1769.2,14.22214742]
[1746027914865,4.338,1769.5,1769.2,11.01434742]
[1746027915068,8.281,1769.5,1769.2,12.14468742]
[1746027915262,8.281,1769.5,1769.2,11.01434742]
[1746027915469,13.281,1769.5,1769.2,11.01434742]
[1746027915859,13.37835919,1769.5,1769.2,11.01434742]
[1746027916061,13.37836544,1769.5,1769.2,11.01434742]
[1746027916366,17.11,1769.5,1769.2,12.14469742]
[1746027916564,13.9022,1769.5,1769.2,12.14469742]
[1746027916865,17.11,1769.5,1769.2,11.01434742]
[1746027917565,1.13031,1769.4,1769.0,1.13051]
[1746027917866,2.73951,1769.4,1769.0,1.13051]
[1746027918064,2.73951,1769.4,1769.1,1.13045]
[1746027918262,1.13033,1769.3,1769.0,1.13048]
[1746027918468,5.5781,1769.2,1768.9,1.13054]
[1746027918665,1.1305,1769.1,1768.8,1.1306]
[1746027918862,1.6341,1769.0,1768.7,4.828]
[1746027919061,5.07459,1768.9,1768.7,5.95867]
[1746027919266,3.944,1768.9,1768.7,5.95868]
[1746027919476,1.6341,1768.8,1768.7,5.95868]
[1746027920273,1.6341,1768.8,1768.7,9.78668]
[1746027920568,3.944,1768.9,1768.8,1.13065]
[1746027920762,3.945,1768.9,1768.8,2.75205]
[1746027921065,3.945,1768.9,1768.8,5.4494]
[1746027921271,5.07558,1768.9,1768.8,5.4494]
[1746027921475,8.28338,1768.9,1768.8,3.828]
[1746027921671,13.28338,1768.9,1768.8,3.828]
[1746027921975,13.38077668,1768.9,1768.8,3.383]
[1746027922161,2.82671,1768.8,1768.2,0.8744]
[1746027922472,1.13094,1768.4,1768.2,0.8744]
[1746027922767,6.82057,1768.3,1768.1,2.8402]
[1746027922968,5.6896,1768.3,1768.2,1.13103]
[1746027923159,5.6896,1768.3,1768.2,5.5371]
[1746027923364,5.6896,1768.3,1768.2,6.66813]
[1746027923564,3.946,1768.3,1768.2,6.66813]
[1746027924574,3.946,1768.3,1768.2,3.828]
[1746027925371,3.946,1768.3,1768.2,4.95903]
[1746027925670,3.946,1768.3,1768.2,6.72323]
[1746027925876,1.7436,1768.5,1768.4,1.1309]
[1746027926069,2.89663,1768.7,1768.4,1.1309]
[1746027926372,3.947,1768.6,1768.4,4.9589]
[1746027926567,5.7129,1768.6,1768.4,4.95886]
[1746027926772,6.84369,1768.6,1768.4,4.95886]
[1746027926968,5.7129,1768.6,1768.5,1.13084]
[1746027927274,5.7129,1768.6,1768.4,3.828]
[1746027927275,5.7129,1768.6,1768.4,7.0358]
[1746027927575,1.7659,1768.6,1768.5,1.13084]
[1746027927769,5.7129,1768.6,1768.5,2.82634]
[1746027928169,5.7129,1768.6,1768.5,6.65434]
[1746027928170,1.7659,1768.6,1768.5,6.65434]
[1746027928470,5.7129,1768.6,1768.5,9.86214]
[1746027928674,5.7129,1768.6,1768.5,6.65434]
[1746027929068,1.13063,1768.9,1768.7,1.13071]
[1746027929276,5.07765,1768.8,1768.6,1.13075]
[1746027929474,1.7392,1768.7,1768.6,1.13075]
[1746027931173,1.7392,1768.7,1768.5,5.5235]
[1746027931379,2.86993,1768.7,1768.5,3.828]
[1746027931579,1.7392,1768.7,1768.6,1.13078]
[1746027931884,1.7392,1768.7,1768.5,5.4762]
[1746027932076,1.7392,1768.7,1768.6,1.13078]
[1746027932987,5.6822,1768.7,1768.6,1.13078]
[1746027934874,3.943,1768.7,1768.6,1.13078]
[1746027935380,2.88613,1768.9,1768.8,1.13065]
[1746027935678,5.07363,1768.9,1768.8,1.13065]
[1746027935883,3.943,1768.9,1768.8,1.13065]
[1746027936587,5.07358,1768.9,1768.8,1.13065]
[1746027936770,3.943,1768.9,1768.7,1.13069]
[1746027936977,1.13065,1768.8,1768.7,1.13069]
[1746027937274,1.13068,1768.8,1768.6,1.13073]
[1746027937571,1.13072,1768.7,1768.4,7.68666]
[1746027937779,3.943,1768.6,1768.5,1.13084]
[1746027940383,5.07378,1768.6,1768.5,1.13084]
[1746027940584,5.07378,1768.6,1768.4,5.99027]
[1746027940772,5.07378,1768.6,1768.4,7.64767]
[1746027941186,5.07378,1768.6,1768.0,3.828]
[1746027941187,3.2078,1768.5,1768.0,3.828]
[1746027941388,3.2078,1768.5,1768.1,1.6574]
[1746027941389,1.13095,1768.4,1768.1,1.6574]
[1746027941584,3.2078,1768.5,1768.2,1.13102]
[1746027941585,5.07497,1768.3,1768.2,1.13102]
[1746027941775,5.07497,1768.3,1768.1,2.78845]
[1746027941975,1.13103,1768.2,1768.1,1.6574]
[1746027943084,1.13103,1768.2,1768.1,2.7885]
[1746027943286,1.13103,1768.2,1768.1,1.6574]
[1746027943788,1.13116,1768.0,1767.9,5.1559]
[1746027943985,3.944,1768.0,1767.9,6.82]
[1746027944287,3.944,1768.0,1767.9,10.648]
[1746027945487,5.07516,1768.0,1767.9,10.648]
[1746027945679,5.07516,1768.0,1767.9,10.64802]
[1746027945985,5.07516,1768.0,1767.9,7.8527]
[1746027946187,5.07516,1768.0,1767.9,4.0247]
[1746027947683,5.07516,1768.0,1767.9,5.15592]
[1746027947884,3.944,1768.0,1767.9,4.0247]
[1746027948085,3.944,1768.0,1767.9,6.78552]
[1746027948384,3.944,1768.0,1767.9,10.61352]
[1746027949086,5.07516,1768.0,1767.9,10.61352]
[1746027949594,3.944,1768.0,1767.9,10.61352]
[1746027951878,5.07516,1768.0,1767.9,10.61352]
[1746027952691,3.944,1768.0,1767.9,10.61352]
[1746027952991,5.07516,1768.0,1767.9,10.61352]
[1746027953189,3.944,1768.0,1767.9,10.61352]
[1746027953689,0.8422,1768.4,1767.9,10.61352]
[1746027953690,1.13091,1768.5,1768.4,1.1309]
[1746027953894,5.07591,1768.5,1768.4,1.1309]
[1746027954191,5.07591,1768.5,1768.2,2.82744]
[1746027954192,1.13101,1768.3,1768.2,1.13099]
[1746027954398,1.13101,1768.3,1768.2,2.87109]
[1746027954587,2.86706,1768.4,1768.3,1.13097]
[1746027955788,1.7361,1768.4,1768.3,1.13097]
[1746027956291,1.7361,1768.4,1768.3,5.78197]
[1746027956693,6.86301,1768.9,1768.6,1.13071]
[1746027956892,1.13074,1768.7,1768.6,1.13071]
[1746027957592,5.0757,1768.8,1768.6,1.13071]
[1746027958090,5.0757,1768.8,1768.4,3.7265]
[1746027958091,2.81546,1768.7,1768.5,1.1308]
[1746027958287,2.81546,1768.7,1768.5,2.8543]
[1746027958487,2.81546,1768.7,1768.6,1.13078]
[1746027959593,1.6847,1768.7,1768.6,1.13078]
[1746027960094,4.33842,1768.9,1768.8,1.13065]
[1746027960391,8.8365,1768.9,1768.8,1.13065]
[1746027960793,5.6287,1768.9,1768.8,1.13065]
[1746027960990,3.944,1768.9,1768.8,1.13065]
[1746027961183,3.944,1768.9,1768.8,4.95865]
[1746027961395,1.708,1769.2,1768.9,2.82645]
[1746027961584,1.13026,1769.5,1769.3,1.1303]
[1746027961784,3.939,1769.4,1769.1,1.13044]
[1746027961985,1.13046,1769.1,1769.0,1.7514]
[1746027962191,1.13052,1769.0,1768.9,41.6804]
[1746027962496,1.13073,1768.7,1768.6,1.13077]
[1746027962697,5.06973,1768.7,1768.6,1.13077]
[1746027962902,5.06973,1768.7,1768.6,43.68217]
[1746027963496,3.939,1768.7,1768.6,2.88217]
[1746027963695,5.06971,1768.7,1768.6,2.88217]
[1746027963997,6.71141,1768.7,1768.6,2.88217]
[1746027964296,1.13084,1768.5,1768.4,12.95818368]
[1746027964506,1.13084,1768.5,1768.4,14.08908368]
[1746027964789,1.13084,1768.5,1768.4,11.22628368]
[1746027965187,1.13084,1768.5,1768.4,7.39828368]
[1746027965392,7.2644,1768.7,1768.4,8.52918368]
[1746027965599,7.2644,1768.7,1768.4,7.39828368]
[1746027965799,1.13084,1768.5,1768.4,7.39828368]
[1746027965993,1.1309,1768.4,1768.2,2.8535]
[1746027966189,5.06997,1768.3,1768.2,1.7225]
[1746027966394,3.939,1768.3,1768.2,2.85353]
[1746027966588,5.06997,1768.3,1768.2,1.7225]
[1746027966788,6.71167,1768.3,1768.1,1.13108]
[1746027966993,1.13103,1768.2,1768.0,7.77541]
[1746027967300,1.6087,1768.2,1768.0,10.4723]
[1746027967500,1.6087,1768.2,1768.1,1.1311]
[1746027967706,1.6087,1768.2,1768.0,11.60342]
[1746027968194,1.6087,1768.2,1768.0,7.77541]
[1746027968393,2.73973,1768.2,1768.0,7.77542]
[1746027969303,1.1311,1768.1,1768.0,6.6443]
[1746027969497,2.7398,1768.1,1768.0,4.9159]
[1746027970001,2.7398,1768.1,1768.0,6.04706]
[1746027970197,3.939,1768.3,1768.0,4.9159]
[1746027970501,1.13092,1768.4,1768.3,1.13096]
[1746027970698,5.06992,1768.4,1768.2,3.2078]
[1746027971003,5.0699,1768.4,1768.3,2.87047]
[1746027971400,5.0699,1768.4,1768.3,1.7395]
[1746027972098,1.1309,1768.4,1768.3,1.7395]
[1746027972405,1.1309,1768.4,1768.3,6.69847]
[1746027972406,5.0699,1768.4,1768.3,6.69847]
[1746027972601,5.0691,1768.4,1768.3,6.69847]
[1746027972809,5.0691,1768.4,1768.3,5.5675]
[1746027973305,5.0691,1768.4,1768.3,6.69847]
[1746027974103,5.0691,1768.4,1768.3,5.5675]
[1746027974304,3.939,1768.4,1768.3,6.69847]
[1746027974806,5.0699,1768.4,1768.3,6.69847]
[1746027975198,5.0699,1768.4,1768.3,3.828]
[1746027976107,6.7471,1768.4,1768.3,3.828]
[1746027976407,1.1311,1768.1,1768.0,6.04705]
[1746027976609,5.0701,1768.1,1768.0,6.04705]
[1746027976808,5.0701,1768.1,1768.0,4.9159]
[1746027977499,1.13116,1768.0,1767.9,3.828]
[1746027977698,6.09346,1768.0,1767.9,3.828]
[1746027977901,11.09346,1768.0,1767.9,1.11439]
[1746027978107,1.13142,1767.6,1767.5,7.39828368]
[1746027978404,5.07042,1767.6,1767.5,7.39828368]
[1746027978809,6.82492,1767.6,1767.5,7.39828368]
[1746027979607,6.82492,1767.6,1767.3,1.6594]
[1746027979608,1.13154,1767.4,1767.3,1.6594]
[1746027980201,1.13154,1767.4,1767.3,5.4874]
[1746027980602,1.13154,1767.4,1767.3,3.828]
[1746027982208,1.13154,1767.4,1767.2,7.50377]
[1746027982514,3.94,1767.3,1767.2,7.50377]
[1746027983107,5.07161,1767.3,1767.2,11.33177]
[1746027983309,5.07161,1767.3,1767.2,7.50377]
[1746027984312,3.94,1767.3,1767.2,10.71157]
[1746027985708,5.07161,1767.3,1767.2,10.71157]
[1746027986709,5.07161,1767.3,1767.2,4.6965]
[1746027987009,8.27941,1767.3,1767.2,3.828]
[1746027987211,8.27941,1767.3,1766.9,0.8748]
[1746027987212,1.1318,1767.0,1766.9,0.8748]
[1746027987411,1.13193,1766.8,1766.7,2.76074]
[1746027987814,3.2078,1767.3,1766.8,2.82969]
[1746027988114,1.13175,1767.1,1767.0,1.13175]
[1746027988312,1.13175,1767.1,1767.0,2.79765]
[1746027988513,1.13175,1767.1,1767.0,1.6659]
[1746027988814,4.33955,1767.1,1767.0,1.6659]
[1746027989118,1.13191,1766.9,1766.8,1.1319]
[1746027989311,5.07291,1766.9,1766.8,1.1319]
[1746027989711,3.941,1766.9,1766.8,1.1319]
[1746027990117,3.941,1766.9,1766.8,8.1677]
[1746027993614,1.7189,1767.1,1767.0,1.1318]
[1746027993816,5.6539,1767.1,1767.0,1.1318]
[1746027994220,5.6539,1767.1,1767.0,4.9598]
[1746027994518,6.78564,1767.1,1767.0,4.9598]
[1746027995615,5.6539,1767.1,1767.0,4.9598]
[1746027997414,5.6539,1767.1,1767.0,5.8212]
[1746027999223,3.2078,1767.3,1767.2,1.13167]
[1746027999435,10.01531,1767.3,1767.2,1.13167]
[1746027999936,11.71275,1767.3,1767.0,5.82116]
[1746028000533,10.01535,1767.3,1767.0,4.6894]
[1746028000729,1.13168,1767.2,1767.1,1.13168]
[1746028000932,1.13174,1767.1,1767.0,5.82115]
[1746028001133,1.6157,1767.2,1767.0,4.6894]
[1746028001434,1.6157,1767.2,1767.1,1.13174]
[1746028001435,2.74743,1767.2,1767.1,1.13174]
[1746028001636,1.6157,1767.2,1767.1,1.13174]
[1746028001834,1.13174,1767.1,1767.0,7.51996]
[1746028002033,2.74742,1767.2,1767.1,1.13174]
[1746028002739,2.74742,1767.2,1767.0,4.95975]
[1746028003130,1.13174,1767.1,1767.0,4.95975]
[1746028003339,1.1317,1767.2,1767.0,3.828]
[1746028003638,1.13167,1767.2,1767.1,2.76221]
[1746028004136,2.75707,1767.2,1767.1,2.76221]
[1746028004533,1.13174,1767.1,1767.0,3.828]
[1746028004739,1.13174,1767.1,1767.0,3.8272]
[1746028004740,2.75714,1767.1,1767.0,3.8272]
[1746028005834,5.96494,1767.1,1767.0,3.8272]
[1746028006236,1.13189,1766.9,1766.8,1.13191]
[1746028006436,5.06789,1766.9,1766.8,1.13191]
[1746028006743,3.936,1766.9,1766.8,1.13191]
[1746028007039,3.936,1766.9,1766.7,2.76244]
[1746028007239,1.13193,1766.8,1766.7,1.6305]
[1746028007431,2.76493,1766.8,1766.7,2.76249]
[1746028007839,2.76493,1766.8,1766.7,1.6305]
[1746028008028,1.13199,1766.7,1766.6,4.0357]
[1746028008233,2.76499,1766.7,1766.6,7.8637]
[1746028009140,2.76499,1766.7,1766.6,4.0357]
[1746028009339,3.936,1766.9,1766.6,4.0357]
[1746028009637,1.13182,1767.0,1766.9,1.13186]
[1746028009835,5.06782,1767.0,1766.9,2.79926]
[1746028010231,5.06782,1767.0,1766.9,5.4954]
[1746028010834,5.06782,1767.0,1766.9,6.62726]
[1746028011343,5.06782,1767.0,1766.9,5.4954]
[1746028011547,5.06782,1767.0,1766.9,6.62726]
[1746028012141,5.06782,1767.0,1766.9,3.828]
[1746028012747,5.89332,1767.0,1766.9,3.828]
[1746028013044,7.55002,1767.0,1766.9,3.828]
[1746028013241,6.4182,1767.0,1766.7,1.13198]
[1746028013443,9.24771,1767.0,1766.7,2.84078]
[1746028013643,6.72455,1767.0,1766.8,1.13187]
[1746028013945,1.13188,1766.9,1766.8,1.1319]
[1746028014143,2.78858,1766.9,1766.8,4.9599]
[1746028014443,1.6567,1766.9,1766.8,4.9599]
[1746028015646,3.936,1767.0,1766.9,1.13186]
[1746028015840,3.936,1767.0,1766.9,3.54196]
[1746028016239,3.936,1767.0,1766.9,7.36996]
[1746028018447,3.2078,1767.4,1766.9,11.2381]
[1746028018647,1.13158,1767.4,1767.3,1.13156]
[1746028019148,1.7689,1767.5,1767.4,1.13154]
[1746028019339,1.7689,1767.5,1767.4,3.60724]
[1746028019539,1.7689,1767.5,1767.4,4.45754]
[1746028019949,2.90038,1767.5,1767.4,3.326]
[1746028020147,2.90038,1767.5,1767.4,7.154]
[1746028020349,2.90038,1767.5,1767.4,5.5168]
[1746028021045,2.90038,1767.5,1767.4,4.6665]
[1746028021851,2.90038,1767.5,1767.4,3.828]
[1746028022051,9.59718,1767.5,1767.4,3.828]
[1746028022250,1.13167,1767.2,1767.1,4.33952]
[1746028022450,5.06067,1767.2,1767.1,4.33952]
[1746028023049,1.13174,1767.1,1767.0,1.67932432]
[1746028023245,2.84324,1767.1,1767.0,5.50732432]
[1746028023543,1.7115,1767.1,1767.0,6.63912432]
[1746028023944,3.929,1767.2,1767.0,6.63912432]
[1746028024144,3.929,1767.2,1767.0,3.83262432]
[1746028024449,5.06068,1767.2,1767.0,4.96437432]
[1746028024636,2.84324,1767.1,1767.0,3.83262432]
[1746028025351,1.7115,1767.1,1767.0,1.13642432]
[1746028025542,2.84324,1767.1,1767.0,0.00462432]
[1746028028449,3.67384,1767.1,1767.0,0.00462432]
[1746028030851,8.67384,1767.1,1767.0,0.00462432]
[1746028031054,9.54014,1767.1,1767.0,0.00462432]
[1746028031453,9.54014,1767.1,1767.0,4.32e-06]
[1746028031659,9.63763759,1767.1,1767.0,4.32e-06]
[1746028032060,1.13225,1766.3,1766.2,2.4602]
[1746028032353,1.13225,1766.3,1766.1,7.39828368]
[1746028032354,1.13231,1766.2,1766.1,7.39828368]
[1746028032553,2.82341,1766.2,1766.1,7.39828368]
[1746028032858,3.929,1766.3,1766.2,1.13231]
[1746028033054,1.6911,1766.6,1766.4,1.13218]
[1746028033352,3.93,1766.5,1766.3,3.61135]
[1746028033558,2.82328,1766.4,1766.3,2.4791]
[1746028033760,1.13231,1766.2,1766.1,7.39828368]
[1746028033955,5.06231,1766.2,1766.1,9.07908368]
[1746028034157,3.93,1766.2,1766.1,10.21146368]
[1746028034359,5.06231,1766.2,1766.1,1.6808]
[1746028035053,3.93,1766.2,1766.1,2.81318]
[1746028035458,5.06231,1766.2,1766.1,1.6808]
[1746028035761,5.5754,1766.2,1766.1,2.81318]
[1746028036060,3.93,1766.2,1766.1,2.81318]
[1746028036459,3.93,1766.2,1766.1,1.6808]
[1746028036660,3.93,1766.2,1766.1,2.81318]
[1746028036853,2.77757,1766.5,1766.3,1.13225]
[1746028037053,5.06218,1766.4,1766.3,1.13225]
[1746028037362,5.06218,1766.4,1766.3,3.828]
[1746028037861,5.06218,1766.4,1766.3,5.5801]
[1746028038058,5.06218,1766.4,1766.3,6.71235]
[1746028038259,5.06218,1766.4,1766.3,5.5801]
[1746028038660,5.06218,1766.4,1766.3,6.71235]
[1746028040065,3.93,1766.4,1766.3,6.71235]
[1746028040359,5.06218,1766.4,1766.3,6.71235]
[1746028040560,3.93,1766.4,1766.3,6.71235]
[1746028040759,1.13201,1766.7,1766.3,5.5801]
[1746028040954,3.93,1766.4,1766.3,4.96025]
[1746028041349,5.06218,1766.4,1766.3,4.96025]
[1746028041858,3.93,1766.4,1766.3,4.96025]
[1746028042060,5.06218,1766.4,1766.3,4.96025]
[1746028043361,5.06218,1766.4,1766.3,3.828]
[1746028043758,6.72308,1766.4,1766.3,3.828]
[1746028044866,1.13231,1766.2,1766.1,1.13236]
[1746028045260,1.13238,1766.1,1766.0,4.3402]
[1746028045465,3.931,1766.1,1766.0,4.3402]
[1746028045667,3.931,1766.1,1766.0,4.34024]
[1746028046268,3.931,1766.1,1766.0,8.16824]
[1746028049366,1.13225,1766.3,1766.2,1.13225]
[1746028049565,5.06325,1766.3,1766.2,1.13225]
[1746028049766,1.13235,1766.2,1766.1,1.13232]
[1746028050567,6.70899,1766.3,1766.2,1.13231]
[1746028051369,6.70899,1766.3,1766.2,4.96031]
[1746028051668,5.5767,1766.3,1766.2,4.96031]
[1746028053481,6.70895,1766.3,1766.2,4.96031]
[1746028054169,5.5767,1766.3,1766.2,4.96031]
[1746028056067,5.5767,1766.3,1766.2,8.16811]
[1746028056271,3.923,1766.7,1766.6,1.13206]
[1746028056569,1.6222,1766.9,1766.8,1.13193]
[1746028056765,5.5452,1766.9,1766.8,1.13193]
[1746028057163,5.5452,1766.9,1766.8,4.95993]
[1746028057363,3.923,1766.9,1766.8,4.95993]
[1746028059073,2.75395,1767.1,1767.0,1.1318]
[1746028059273,3.923,1767.1,1767.0,1.1318]
[1746028059671,5.05476,1767.1,1766.9,1.95785]
[1746028059863,2.7955,1767.0,1766.9,0.826]
[1746028060059,2.7955,1767.0,1766.9,5.78586]
[1746028060274,1.6637,1767.0,1766.9,5.78586]
[1746028060467,1.6637,1767.0,1766.9,7.43846]
[1746028060670,2.7955,1767.0,1766.9,7.43846]
[1746028061275,2.7955,1767.0,1766.9,6.3066]
[1746028061468,2.7947,1767.0,1766.9,3.828]
[1746028061867,4.4535,1767.0,1766.9,3.828]
[1746028062072,7.6613,1767.0,1766.9,3.828]
[1746028062267,1.13204,1766.7,1766.5,1.1321]
[1746028062570,3.923,1766.6,1766.5,2.7452]
[1746028063276,3.923,1766.6,1766.5,6.5732]
[1746028064771,3.2078,1767.2,1766.8,1.13193]
[1746028064972,3.923,1766.9,1766.8,1.13193]
[1746028065172,3.923,1766.9,1766.8,4.95993]
[1746028065375,5.05486,1766.9,1766.8,3.828]
[1746028065673,6.69046,1766.9,1766.8,3.828]
[1746028066270,1.13203,1766.7,1766.5,3.2078]
[1746028066472,6.69066,1766.6,1766.5,3.2078]
[1746028066873,6.69066,1766.6,1766.5,4.33992]
[1746028066874,5.5586,1766.6,1766.5,4.33992]
[1746028067266,5.5586,1766.6,1766.5,8.16792]
[1746028067468,3.923,1766.6,1766.5,8.16792]